bitfinex-derivatives/quotes_SOLF0:USTF0_20250816
["timestamp","ask_amount","ask_price","bid_price","bid_amount"]
[1755318757700,3.05,187.78,187.76,0.03514305]
[1755318758006,7.01320176,187.77,187.76,0.03514305]
[1755318758998,7.55320176,187.77,187.76,0.03514305]
[1755318760008,3.05,187.76,187.72,2.86]
[1755318760204,3.05,187.74,187.72,2.86]
[1755318760606,3.05,187.73,187.72,2.86]
[1755318761506,3.05,187.73,187.67,2.86]
[1755318761707,131.35621327,187.78,187.67,2.86]
[1755318761910,7.01459969,187.77,187.7,2.86]
[1755318762107,131.3,187.78,187.7,2.86]
[1755318762311,0.0335278,187.74,187.7,2.86]
[1755318762717,0.0335278,187.74,187.7,2.85675428]
[1755318762912,0.0335278,187.74,187.71,2.86]
[1755318763323,3.05,187.73,187.72,2.86]
[1755318763620,3.05,187.72,187.68,2.86]
[1755318764118,0.0335278,187.74,187.68,2.86]
[1755318764512,0.0335278,187.74,187.71,2.86]
[1755318766322,3.0835278,187.74,187.71,2.86]
[1755318766617,3.05,187.73,187.71,2.86]
[1755318766813,3.05,187.73,187.72,2.86]
[1755318767719,3.05,187.73,187.68,2.86]
[1755318767922,3.05,187.72,187.68,2.86]
[1755318768120,3.05,187.71,187.68,2.86]
[1755318768323,0.0335278,187.74,187.68,2.86]
[1755318768522,3.07,187.72,187.68,2.86]
[1755318770428,3.1035278,187.74,187.68,2.86]
[1755318778634,3.07,187.72,187.68,2.86]
[1755318779031,3.07,187.72,187.64,2.85675428]
[1755318779231,3.07,187.72,187.69,2.97]
[1755318780141,3.10848287,187.72,187.64,5.82675428]
[1755318780430,3.10848287,187.72,187.65,2.97]
[1755318781029,3.07,187.7,187.65,2.97]
[1755318781634,3.07,187.7,187.61,2.97]
[1755318782230,3.07,187.76,187.67,2.97]
[1755318782439,3.07,187.74,187.67,2.97]
[1755318782738,0.03771766,187.73,187.67,2.97]
[1755318782931,0.03771766,187.73,187.7,2.97]
[1755318783330,3.07,187.74,187.7,2.97]
[1755318783637,0.03857605,187.73,187.7,2.97]
[1755318786941,0.03857605,187.73,187.7,5.82675428]
[1755318787143,0.03857605,187.73,187.71,2.97]
[1755318791637,0.03857605,187.73,187.7,2.85675428]
[1755318791841,3.07,187.72,187.68,2.97]
[1755318792041,3.07,187.72,187.69,2.97]
[1755318792536,3.1070848,187.72,187.69,2.97]
[1755318792948,3.1070848,187.72,187.7,2.97]
[1755318793150,3.07,187.71,187.7,2.97]
[1755318795649,7.11668627,187.71,187.7,2.97]
[1755318795950,3.07,187.71,187.7,2.97]
[1755318796151,7.11874783,187.71,187.7,2.97]
[1755318799249,4.04874783,187.71,187.7,2.97]
[1755318799549,0.0370848,187.72,187.7,5.82675428]
[1755318799740,3.0570848,187.72,187.7,2.88]
[1755318799945,7.07386066,187.71,187.7,2.88]
[1755318800946,4.05386066,187.71,187.7,2.88]
[1755318801948,4.05386066,187.71,187.7,5.73675428]
[1755318802253,3.02,187.76,187.71,2.88]
[1755318802448,4.47337781,187.77,187.71,2.88]
[1755318802648,3.02,187.75,187.71,2.88]
[1755318805555,3.02,187.77,187.71,2.88]
[1755318806156,3.02,187.77,187.72,0.03430885]
[1755318806553,3.02,187.77,187.73,2.88]
[1755318807362,7.49337781,187.78,187.73,2.88]
[1755318807565,3.02,187.78,187.73,2.88]
[1755318808160,3.02,187.78,187.75,2.88]
[1755318809065,4.47337781,187.78,187.75,2.88]
[1755318809256,3.02,187.77,187.75,2.88]
[1755318809655,3.02,187.77,187.74,0.03507611]
[1755318809958,3.02,187.75,187.74,0.03507611]
[1755318812759,3.02,187.75,187.74,2.91507611]
[1755318813864,3.02,187.76,187.74,2.91507611]
[1755318814063,4.12645709,187.75,187.74,2.91507611]
[1755318815258,7.14645709,187.75,187.74,2.91507611]
[1755318815459,4.12645709,187.75,187.74,2.91507611]
[1755318815962,7.14645709,187.75,187.74,2.91507611]
[1755318817458,4.12645709,187.75,187.74,2.91507611]
[1755318818156,7.14645709,187.75,187.74,2.91507611]
[1755318820459,4.12645709,187.75,187.74,2.91507611]
[1755318821062,7.14645709,187.75,187.74,2.91507611]
[1755318821765,4.12645709,187.75,187.74,2.91507611]
[1755318825066,7.14645709,187.75,187.74,0.03507611]
[1755318827473,4.12645709,187.75,187.74,0.03507611]
[1755318827675,7.14645709,187.75,187.74,0.03507611]
[1755318830074,3.02,187.74,187.69,2.87]
[1755318830276,8.59845691,187.73,187.69,2.87]
[1755318830483,3.02,187.71,187.7,2.87]
[1755318830674,7.14645709,187.71,187.7,2.87]
[1755318830978,11.61845691,187.71,187.7,2.87]
[1755318831769,4.12645709,187.71,187.66,2.87]
[1755318831983,4.12645709,187.7,187.66,2.87]
[1755318832180,0.03581028,187.72,187.66,2.87]
[1755318832369,4.29136594,187.71,187.66,2.87]
[1755318832569,4.29136594,187.7,187.66,2.87]
[1755318832774,4.29136594,187.69,187.66,2.87]
[1755318832974,0.03581028,187.72,187.66,8.1945]
[1755318833174,4.29098652,187.71,187.67,2.87]
[1755318833471,4.29098652,187.7,187.67,2.87]
[1755318833677,4.29098652,187.69,187.67,2.87]
[1755318833877,0.03581028,187.72,187.67,2.87]
[1755318834077,4.29033151,187.71,187.67,2.87]
[1755318834280,4.29033151,187.7,187.67,2.87]
[1755318834481,4.29033151,187.69,187.67,2.87]
[1755318834679,4.29033151,187.68,187.67,2.87]
[1755318838981,7.31033151,187.68,187.63,2.87]
[1755318839285,4.29033151,187.67,187.63,2.87]
[1755318839485,4.29033151,187.66,187.63,2.87]
[1755318839780,0.03537395,187.67,187.63,5.3254]
[1755318839984,4.28891002,187.66,187.64,2.87]
[1755318840188,0.03537395,187.67,187.64,2.87]
[1755318840388,4.28911338,187.66,187.65,2.87]
[1755318841181,0.03537395,187.67,187.65,5.3248]
[1755318841385,0.03537395,187.67,187.66,2.87]
[1755318850186,0.03537395,187.67,187.66,8.1946]
[1755318850395,7.49199982,187.74,187.66,3.41]
[1755318850692,3.02,187.77,187.74,5.3223]
[1755318850893,4.29167466,187.76,187.75,2.87]
[1755318851891,4.47199982,187.81,187.75,5.3219]
[1755318852193,7.31204736,187.8,187.76,2.87]
[1755318852394,4.29204736,187.79,187.76,2.87]
[1755318852594,4.29204736,187.78,187.76,2.91004489]
[1755318852788,3.02,187.8,187.76,2.91004489]
[1755318852789,4.29204736,187.77,187.76,2.91004489]
[1755318853089,3.02,187.8,187.76,2.91004489]
[1755318853292,7.31071422,187.79,187.76,2.91004489]
[1755318853491,4.29071422,187.78,187.76,2.91004489]
[1755318853693,3.02,187.79,187.76,2.91004489]
[1755318853895,4.29074463,187.78,187.76,2.91004489]
[1755318854092,3.02,187.79,187.76,2.91004489]
[1755318854294,4.28976059,187.78,187.76,2.91004489]
[1755318854495,3.02,187.79,187.76,2.91004489]
[1755318854698,4.28956298,187.78,187.76,2.91004489]
[1755318854998,3.02,187.79,187.76,2.91004489]
[1755318855294,7.30969307,187.78,187.76,0.04004489]
[1755318855497,3.02,187.78,187.77,2.87]
[1755318855692,7.30859669,187.78,187.77,2.87]
[1755318864200,4.28859669,187.78,187.76,0.04004489]
[1755318864400,7.37475065,187.77,187.76,0.04004489]
[1755318865405,3.09,187.76,187.7,3.06]
[1755318865603,3.09,187.74,187.7,3.06]
[1755318865906,3.09,187.71,187.7,3.06]
[1755318866101,4.47199982,187.77,187.68,2.85675428]
[1755318866102,4.47199982,187.77,187.68,5.91675428]
[1755318866303,7.56199982,187.75,187.66,3.06]
[1755318866508,3.09,187.73,187.66,3.06]
[1755318866703,3.09,187.71,187.64,3.06]
[1755318867001,3.09,187.69,187.62,2.85675428]
[1755318867206,3.09,187.67,187.65,3.06]
[1755318867407,3.09,187.66,187.65,3.06]
[1755318867702,3.09,187.66,187.61,2.85675428]
[1755318868004,3.09,187.66,187.63,3.06]
[1755318868606,3.12559975,187.66,187.61,2.85675428]
[1755318868807,3.09,187.64,187.59,3.06]
[1755318869004,0.03559975,187.66,187.59,3.06]
[1755318869308,3.09,187.63,187.59,3.06]
[1755318870307,3.09,187.65,187.59,3.06]
[1755318872407,3.09,187.63,187.56,5.91675428]
[1755318872709,3.09,187.63,187.57,3.06]
[1755318873109,0.03700402,187.61,187.57,3.06]
[1755318873307,3.09,187.6,187.57,3.06]
[1755318874313,0.03700402,187.61,187.57,3.06]
[1755318875313,3.12700402,187.61,187.57,3.06]
[1755318876213,0.03700402,187.61,187.56,2.85675428]
[1755318876414,3.09,187.59,187.58,3.06]
[1755318877618,0.03700402,187.61,187.56,2.85675428]
[1755318877805,3.09,187.6,187.59,3.06]
[1755318878510,3.12700402,187.61,187.6,3.06]
[1755318879816,0.03700402,187.61,187.6,3.06]
[1755318882820,3.12700402,187.61,187.6,3.06]
[1755318883428,3.12700402,187.61,187.57,3.06]
[1755318883621,3.09,187.6,187.57,3.06]
[1755318883816,3.12700402,187.61,187.57,3.06]
[1755318884016,0.03700402,187.61,187.57,3.06]
[1755318886231,0.03700402,187.61,187.57,8.3871]
[1755318886530,0.03700402,187.61,187.57,8.18385428]
[1755318886827,0.03700402,187.61,187.58,3.06]
[1755318889034,0.03700402,187.61,187.58,8.3868]
[1755318889231,0.03700402,187.61,187.59,3.05]
[1755318889929,4.44940154,187.72,187.6,11.23305428]
[1755318890126,20.76387387,187.92,187.61,3.05]
[1755318890127,3.0,187.7,187.61,3.05]
[1755318890334,4.26812187,187.69,187.61,3.05]
[1755318890531,4.26820977,187.68,187.58,2.85675428]
[1755318890730,4.26859628,187.67,187.59,3.05]
[1755318890931,3.0,187.66,187.59,3.05]
[1755318891426,3.0,187.66,187.61,0.03369082]
[1755318893042,3.0,187.65,187.61,0.03369082]
[1755318896535,2.85675428,187.68,187.61,0.03369082]
[1755318896730,3.0,187.64,187.61,0.03369082]
[1755318896930,3.0,187.64,187.61,3.08369082]
[1755318897536,3.0,187.64,187.61,0.03369082]
[1755318900243,4.27492674,187.63,187.51,2.85675428]
[1755318900443,3.0,187.61,187.52,3.05]
[1755318901544,3.03423637,187.58,187.52,3.05]
[1755318902740,4.27391624,187.57,187.52,3.05]
[1755318902943,3.0,187.57,187.52,3.05]
[1755318903840,0.03423637,187.58,187.52,3.05]
[1755318904038,3.0,187.56,187.52,3.05]
[1755318904242,3.0,187.57,187.5,3.05]
[1755318904446,4.27644863,187.56,187.5,3.05]
[1755318904749,3.0,187.55,187.5,3.05]
[1755318904946,3.0,187.57,187.5,3.05]
[1755318905242,4.27627258,187.56,187.5,3.05]
[1755318905455,3.0,187.57,187.5,3.05]
[1755318905642,3.0,187.55,187.5,3.05]
[1755318907051,4.2810972,187.54,187.5,3.05]
[1755318907257,3.0,187.53,187.5,3.05]
[1755318907548,4.44940154,187.58,187.5,3.05]
[1755318907744,0.04002316,187.53,187.5,3.05]
[1755318909355,0.04002316,187.53,187.52,3.05]
[1755318909549,4.32517763,187.53,187.52,3.05]
[1755318909745,4.32517763,187.53,187.49,2.85675428]
[1755318910048,7.28515447,187.52,187.51,3.05]
[1755318911551,4.28515447,187.52,187.51,3.05]
[1755318914252,7.28515447,187.52,187.51,3.05]
[1755318914451,7.28515447,187.52,187.48,2.85675428]
[1755318914452,3.0,187.51,187.48,2.85675428]
[1755318914653,3.0,187.51,187.5,3.05]
[1755318914852,7.28817532,187.51,187.5,3.05]
[1755318917155,7.28817532,187.51,187.45,493.7104]
[1755318917352,3.0,187.51,187.46,3.05]
[1755318918057,3.0,187.5,187.46,3.05]
[1755318918356,3.0,187.5,187.46,8.3803]
[1755318918550,0.04002316,187.53,187.49,2.99]
[1755318918756,4.28549427,187.52,187.49,2.99]
[1755318919055,3.11002316,187.53,187.49,2.99]
[1755318919257,4.28535332,187.52,187.49,2.99]
[1755318919450,3.11002316,187.53,187.49,2.99]
[1755318921756,0.04002316,187.53,187.5,2.99]
[1755318922456,0.04002316,187.53,187.5,8.3189]
[1755318922662,0.04002316,187.53,187.51,2.99]
[1755318922959,0.04002316,187.53,187.51,8.3187]
[1755318923264,0.04002316,187.53,187.52,2.99]
[1755318927067,3.07,187.59,187.52,2.99]
[1755318927267,3.07,187.62,187.56,2.99]
[1755318927467,4.27837114,187.61,187.56,2.99]
[1755318927664,3.07,187.6,187.56,2.99]
[1755318928468,3.07,187.6,187.56,3.02755845]
[1755318929666,3.07,187.59,187.56,3.02755845]
[1755318929862,3.07,187.64,187.56,3.02755845]
[1755318930067,3.07,187.62,187.56,3.02755845]
[1755318930270,3.07,187.6,187.57,2.99]
[1755318930469,4.44940154,187.64,187.57,2.99]
[1755318930470,4.27965967,187.59,187.57,2.99]
[1755318930667,3.07,187.58,187.57,2.99]
[1755318931171,7.35007554,187.58,187.56,0.03755845]
[1755318931477,4.2801642,187.57,187.56,0.03755845]
[1755318931770,7.3501642,187.57,187.56,0.03755845]
[1755318937074,3.07,187.56,187.5,2.99]
[1755318937272,3.07,187.54,187.5,2.99]
[1755318937474,3.07,187.52,187.5,2.99]
[1755318937774,3.07,187.52,187.49,2.99]
[1755318937969,4.28578189,187.51,187.49,2.99]
[1755318938275,3.07,187.48,187.47,2.99]
[1755318939676,7.35505136,187.48,187.47,2.99]
[1755318940075,3.07,187.47,187.43,2.85675428]
[1755318940378,3.07,187.46,187.44,2.99]
[1755318940582,3.07,187.46,187.45,2.99]
[1755318941079,0.03683614,187.47,187.45,2.99]
[1755318942369,0.03683614,187.47,187.43,2.85675428]
[1755318942674,3.07,187.46,187.43,2.85675428]
[1755318942981,0.03683614,187.47,187.45,2.99]
[1755318943281,4.28698969,187.46,187.45,2.99]
[1755318943481,0.03683614,187.47,187.45,2.99]
[1755318943681,3.10683614,187.47,187.46,2.99]
[1755318943980,7.39398419,187.47,187.46,2.99]
[1755318944175,4.32398419,187.47,187.46,2.99]
[1755318945380,0.03683614,187.47,187.46,2.99]
[1755318946577,7.39253319,187.47,187.46,2.99]
[1755318948576,4.32253319,187.47,187.46,2.99]
[1755318948776,0.03683614,187.47,187.46,2.99]
[1755318949677,0.03683614,187.47,187.46,5.84675428]
[1755318949980,0.03683614,187.47,187.46,5.77675428]
[1755318957678,0.03683614,187.47,187.46,11.10705428]
[1755318959283,0.03683614,187.47,187.46,5.77675428]
[1755318961088,0.03683614,187.47,187.46,11.10705428]
[1755318962180,2.9,187.52,187.48,2.92]
[1755318962375,4.44940154,187.56,187.48,2.92]
[1755318962580,2.9,187.51,187.48,2.92]
[1755318962882,4.28135205,187.5,187.48,2.92]
[1755318963085,2.9,187.49,187.46,5.77675428]
[1755318963382,2.9,187.49,187.47,0.03526052]
[1755318965777,4.44940154,187.54,187.47,0.03526052]
[1755318965778,7.18021031,187.48,187.47,0.03526052]
[1755318969884,7.18021031,187.48,187.47,2.95526052]
[1755318970085,2.9,187.5,187.47,2.95526052]
[1755318970588,2.9,187.55,187.47,2.92]
[1755318970789,2.9,187.53,187.47,2.95561365]
[1755318970990,4.27971697,187.52,187.47,2.95561365]
[1755318971180,2.9,187.51,187.47,2.95561365]
[1755318972079,2.9,187.5,187.47,2.95561365]
[1755318972484,2.9,187.49,187.47,2.95561365]
[1755318972881,2.9,187.49,187.47,2.92]
[1755318973391,2.9,187.53,187.47,2.92]
[1755318973591,2.9,187.51,187.47,2.92]
[1755318974290,2.9,187.51,187.47,2.95685158]
[1755318975093,4.44940154,187.55,187.47,2.95685158]
[1755318975392,2.9,187.5,187.47,2.95685158]
[1755318979296,4.29028703,187.49,187.47,2.95685158]
[1755318979495,7.32028703,187.48,187.47,0.03685158]
[1755318979692,7.32028703,187.48,187.46,2.85675428]
[1755318979889,3.03,187.48,187.46,2.89682858]
[1755318980194,3.03,187.48,187.47,2.94]
[1755318980393,7.32059601,187.48,187.47,2.94]
[1755318980792,4.29059601,187.48,187.47,2.94]
[1755318981498,7.32059601,187.48,187.47,2.94]
[1755318982092,4.29059601,187.48,187.47,2.94]
[1755318983298,3.03,187.52,187.47,2.94]
[1755318983495,4.29228254,187.51,187.47,2.94]
[1755318983798,7.32228254,187.5,187.47,2.94]
[1755318984098,3.03,187.48,187.47,2.94]
[1755318984300,4.29228254,187.48,187.47,2.94]
[1755318988703,4.44940154,187.53,187.47,2.94]
[1755318988902,3.03,187.51,187.47,2.94]
[1755318989202,7.32376875,187.5,187.47,2.94]
[1755318989391,4.29376875,187.49,187.47,2.97725545]
[1755318989592,3.03,187.5,187.47,2.97725545]
[1755318989792,4.29396676,187.49,187.47,2.97725545]
[1755318990101,3.03,187.5,187.47,2.97725545]
[1755318990398,4.29397995,187.49,187.47,2.97725545]
[1755318990598,4.29397995,187.48,187.47,2.97725545]
[1755318991596,4.44940154,187.53,187.47,2.97725545]
[1755318991796,3.03,187.49,187.47,2.97725545]
[1755318992200,7.32449443,187.48,187.47,2.97725545]
[1755318993604,4.29449443,187.48,187.47,2.97725545]
[1755318996104,7.32449443,187.48,187.47,2.97725545]
[1755318999800,7.32449443,187.48,187.47,0.03725545]
[1755319000407,7.32449443,187.48,187.47,2.97725545]
[1755319007312,4.29449443,187.48,187.47,0.03725545]
[1755319007509,7.32449443,187.48,187.47,0.03725545]
[1755319008607,11.77389597,187.48,187.42,2.92]
[1755319008813,4.29449443,187.47,187.4,2.85675428]
[1755319009010,2.89,187.45,187.43,2.92]
[1755319009214,7.18449443,187.44,187.43,2.92]
[1755319010709,2.89,187.43,187.42,2.92]
[1755319010903,2.89,187.42,187.41,2.92]
[1755319011109,7.18449443,187.42,187.41,2.92]
[1755319011709,7.18449443,187.42,187.38,2.92]
[1755319011710,2.89,187.4,187.38,2.92]
[1755319014203,2.89,187.42,187.38,2.92]
[1755319014410,2.89,187.4,187.35,2.85675428]
[1755319014710,2.89,187.38,187.36,2.92]
[1755319014910,2.89,187.37,187.35,2.85675428]
[1755319015514,2.89,187.37,187.36,2.92]
[1755319016812,2.89,187.37,187.32,2.92]
[1755319017112,2.89,187.35,187.32,2.92]
[1755319017309,0.0351934,187.38,187.32,2.92]
[1755319017310,2.89,187.37,187.32,2.92]
[1755319017910,4.32673338,187.36,187.32,2.92]
[1755319018116,2.89,187.34,187.32,2.92]
[1755319018712,0.0351934,187.38,187.32,2.92]
[1755319018915,2.89,187.36,187.32,2.92]
[1755319019111,2.89,187.35,187.32,2.92]
[1755319019309,0.0351934,187.38,187.32,2.92]
[1755319019517,2.89,187.36,187.32,2.92]
[1755319020409,2.89,187.35,187.32,2.92]
[1755319021418,0.0351934,187.38,187.31,130.62]
[1755319021618,7.20918255,187.37,187.33,2.92]
[1755319021919,2.89,187.37,187.33,2.92]
[1755319022919,2.89,187.37,187.32,2.92]
[1755319028919,0.0351934,187.38,187.32,8.2542]
[1755319029125,0.0351934,187.38,187.33,2.92]
[1755319029522,2.9251934,187.38,187.35,2.92]
[1755319029925,0.0351934,187.38,187.35,2.92]
[1755319030126,2.89,187.37,187.35,2.92]
[1755319030325,0.0351934,187.38,187.35,2.92]
[1755319030624,0.0351934,187.38,187.36,2.92]
[1755319032727,2.9251934,187.38,187.32,2.92]
[1755319033329,2.9251934,187.38,187.33,2.92]
[1755319033627,2.89,187.37,187.33,2.92]
[1755319034029,2.89,187.37,187.32,2.92]
[1755319034329,2.89,187.36,187.32,2.92]
[1755319034727,2.89,187.36,187.33,2.92]
[1755319040330,0.0351934,187.38,187.34,3.11]
[1755319040638,2.87,187.35,187.32,3.11]
[1755319040929,0.0351934,187.38,187.32,3.11]
[1755319041130,2.87,187.36,187.33,3.11]
[1755319043836,2.87,187.35,187.33,3.11]
[1755319044529,2.87,187.34,187.33,3.11]
[1755319046236,2.87,187.35,187.32,3.11]
[1755319047137,2.87,187.34,187.32,3.11]
[1755319048034,2.87,187.37,187.32,3.11]
[1755319048337,4.3396711,187.36,187.32,3.11]
[1755319048541,2.87,187.37,187.32,3.11]
[1755319048732,4.33979891,187.36,187.34,3.11]
[1755319048935,2.87,187.37,187.34,3.11]
[1755319049238,4.33920113,187.36,187.34,3.11]
[1755319049431,0.0351934,187.38,187.35,3.11]
[1755319049930,0.0351934,187.38,187.35,4.94761485]
[1755319050138,0.0351934,187.38,187.36,5.3329]
[1755319050436,0.0351934,187.38,187.37,4.94761485]
[1755319050639,0.0351934,187.38,187.37,8.4428]
[1755319053039,2.87,187.44,187.41,5.3315]
[1755319053242,2.87,187.44,187.42,3.11]
[1755319053438,2.87,187.47,187.44,5.3308]
[1755319053642,4.34333334,187.46,187.45,3.11]
[1755319053840,7.21333334,187.46,187.45,3.11]
[1755319057037,4.34333334,187.46,187.44,0.0339843]
[1755319057239,2.87,187.45,187.44,3.1439843]
[1755319057435,2.87,187.45,187.44,0.0339843]
[1755319058241,2.87,187.45,187.44,3.1439843]
[1755319065543,4.44940154,187.52,187.44,3.1439843]
[1755319065749,2.87,187.5,187.44,3.1439843]
[1755319065948,2.87,187.48,187.44,3.1439843]
[1755319066553,4.44940154,187.53,187.44,3.1439843]
[1755319066554,2.87,187.47,187.44,3.1439843]
[1755319067452,2.87,187.52,187.45,3.11]
[1755319067653,2.87,187.5,187.45,3.11]
[1755319068249,4.33192536,187.49,187.45,3.11]
[1755319068556,2.87,187.48,187.46,3.1]
[1755319069256,2.87,187.48,187.45,0.03537029]
[1755319069453,2.87,187.48,187.45,3.13537029]
[1755319071451,4.33079559,187.47,187.45,0.03537029]
[1755319071656,7.4607351,187.46,187.45,0.03537029]
[1755319071956,7.46188013,187.46,187.45,0.03537029]
[1755319073456,7.46188013,187.46,187.45,3.13537029]
[1755319073655,3.13,187.46,187.45,3.13537029]
[1755319074459,4.44940154,187.51,187.45,3.13537029]
[1755319074655,3.13,187.47,187.45,3.13537029]
[1755319074853,3.13,187.46,187.45,0.03537029]
[1755319075258,3.13,187.46,187.45,3.13537029]
[1755319077959,4.44940154,187.52,187.45,3.13537029]
[1755319078161,4.33193375,187.51,187.45,3.13537029]
[1755319078459,4.44940154,187.52,187.45,3.13537029]
[1755319078460,3.13,187.48,187.45,3.13537029]
[1755319079556,3.13,187.49,187.45,3.13537029]
[1755319083464,3.13,187.48,187.45,3.13537029]
[1755319083662,3.13,187.47,187.45,3.13537029]
[1755319083963,4.44940154,187.53,187.45,0.03537029]
[1755319084164,3.13,187.46,187.45,0.03537029]
[1755319085060,3.13,187.46,187.45,3.13537029]
[1755319086366,3.13,187.47,187.45,3.13537029]
[1755319087965,4.44940154,187.51,187.45,0.03537029]
[1755319088167,4.3399969,187.5,187.46,3.1]
[1755319088368,3.13,187.48,187.46,3.1]
[1755319088567,7.4699969,187.47,187.46,3.1]
[1755319088766,4.3399969,187.47,187.45,0.03537029]
[1755319088962,3.13,187.46,187.45,3.13537029]
[1755319090262,7.47456915,187.46,187.45,3.13537029]
[1755319090769,3.13,187.47,187.45,3.13537029]
[1755319091266,4.34653087,187.46,187.45,3.13537029]
[1755319091867,3.13,187.47,187.45,3.13537029]
[1755319092167,3.13,187.51,187.46,3.1]
[1755319092368,3.13,187.49,187.46,3.1]
[1755319092570,4.44940154,187.51,187.46,3.1]
[1755319092571,7.47652107,187.48,187.46,3.1]
[1755319092869,4.34652107,187.47,187.46,3.1]
[1755319099972,7.19652107,187.47,187.46,3.1]
[1755319101177,4.34652107,187.47,187.46,3.1]
[1755319102674,7.19652107,187.47,187.46,3.1]
[1755319103880,2.85,187.46,187.45,0.03537029]
[1755319104083,7.19652107,187.46,187.45,0.03537029]
[1755319104381,7.19652107,187.46,187.45,2.87537029]
[1755319106679,7.19652107,187.46,187.45,0.03537029]
[1755319107074,7.19652107,187.46,187.45,2.87537029]
[1755319109776,7.19652107,187.46,187.45,0.03537029]
[1755319110279,11.64592261,187.46,187.45,0.03537029]
[1755319113377,11.64592261,187.46,187.45,2.87537029]
[1755319113576,11.64592261,187.46,187.45,0.03537029]
[1755319116881,11.64592261,187.46,187.45,2.87537029]
[1755319117286,7.19652107,187.46,187.45,2.87537029]
[1755319117484,11.64592261,187.46,187.45,0.03537029]
[1755319118281,7.19652107,187.46,187.45,0.03537029]
[1755319119578,7.19652107,187.46,187.42,2.84]
[1755319119780,8.82977488,187.45,187.42,2.84]
[1755319120086,2.85,187.43,187.38,2.84]
[1755319120280,4.34652107,187.42,187.38,2.84]
[1755319120481,4.34652107,187.41,187.38,2.84]
[1755319120684,4.34652107,187.4,187.38,2.84]
[1755319120984,2.88764822,187.41,187.38,2.84]
[1755319121282,4.31736312,187.4,187.38,2.84]
[1755319121482,2.88764822,187.41,187.38,2.84]
[1755319121682,4.35163241,187.4,187.38,2.84]
[1755319121882,2.88764822,187.41,187.38,2.84]
[1755319122187,4.35163066,187.4,187.38,2.84]
[1755319122383,2.88764822,187.41,187.38,2.84]
[1755319122583,4.35070436,187.4,187.38,2.84]
[1755319122784,2.88764822,187.41,187.38,2.84]
[1755319122987,4.35070436,187.4,187.38,2.84]
[1755319123184,2.88764822,187.41,187.38,2.84]
[1755319123377,4.34917327,187.4,187.38,2.84]
[1755319123581,2.88764822,187.41,187.38,2.84]
[1755319123582,4.34876625,187.39,187.38,2.84]
[1755319125089,7.19876625,187.39,187.38,2.84]
[1755319125985,7.19876625,187.39,187.36,2.84]
[1755319126286,7.19876625,187.38,187.34,2.84]
[1755319126491,0.03764822,187.41,187.38,2.84]
[1755319126690,0.03764822,187.41,187.4,4.6746392]
[1755319126992,4.38331606,187.41,187.4,4.6746392]
[1755319127589,0.03764822,187.41,187.4,4.6746392]
[1755319128892,4.3832148,187.41,187.4,2.84]
[1755319129086,7.2732148,187.41,187.4,2.84]
[1755319129786,4.3832148,187.41,187.4,2.84]
[1755319131695,0.03764822,187.41,187.4,2.84]
[1755319140907,2.89,187.48,187.41,3.13]
[1755319141108,2.89,187.53,187.47,3.13]
[1755319141297,7.23818608,187.52,187.48,3.13]
[1755319141601,2.89,187.51,187.48,3.13]
[1755319142108,2.89,187.51,187.48,3.16989761]
[1755319143104,2.89,187.55,187.49,2.86842025]
[1755319143304,7.21937948,187.54,187.5,3.13]